[Event "Titled Tuesday Blitz November 29 Late 2022"]
[White "Mohammed, Zozek Salah Mohammed"]
[Black "Koellner, Ruben Gideon"]
[WhiteFideId "4803361"]
[BlackFideId "12993093"]
[WhiteElo "2199"]
[BlackElo "2303"]
[Result "1/2-1/2"]
[Round "08"]
[TimeControl "180+1"]
[Date "2022.11.30"]
[WhiteClock "0:00:14"]
[BlackClock "0:00:21"]

1. d4 {[%clk 0:03:00]}  d6 {[%clk 0:03:00]} 2. Nf3 {[%clk 0:03:00]}  Nf6 {[%clk 0:03:00]} 3. c4 {[%clk 0:03:00]}  g6 {[%clk 0:02:59]} 4. g3 {[%clk 0:02:58]}  Bg7 {[%clk 0:02:58]} 5. Bg2 {[%clk 0:02:59]}  O-O {[%clk 0:02:58]} 6. O-O {[%clk 0:02:59]}  Nbd7 {[%clk 0:02:59]} 7. Nc3 {[%clk 0:02:59]}  e5 {[%clk 0:02:59]} 8. e4 {[%clk 0:02:58]}  c6 {[%clk 0:02:59]} 9. Re1 {[%clk 0:02:57]}  Re8 {[%clk 0:02:59]} 10. b3 {[%clk 0:02:53]}  Bf8 {[%clk 0:02:59]} 11. Bb2 {[%clk 0:02:52]}  a6 {[%clk 0:02:59]} 12. Qd2 {[%clk 0:02:51]}  Qc7 {[%clk 0:02:59]} 13. Rad1 {[%clk 0:02:51]}  b5 {[%clk 0:02:59]} 14. cxb5 {[%clk 0:02:50]}  axb5 {[%clk 0:03:00]} 15. Rc1 {[%clk 0:02:49]}  Qb8 {[%clk 0:02:58]} 16. dxe5 {[%clk 0:02:44]}  dxe5 {[%clk 0:02:56]} 17. Ba1 {[%clk 0:02:40]}  Nc5 {[%clk 0:02:49]} 18. Qe3 {[%clk 0:01:57]}  Bg4 {[%clk 0:02:38]} 19. h3 {[%clk 0:01:55]}  Bxf3 {[%clk 0:02:37]} 20. Bxf3 {[%clk 0:01:55]}  Ne6 {[%clk 0:02:34]} 21. Ne2 {[%clk 0:01:50]}  Rc8 {[%clk 0:02:23]} 22. Qc3 {[%clk 0:01:36]}  Bd6 {[%clk 0:02:14]} 23. Qc2 {[%clk 0:01:24]}  c5 {[%clk 0:02:13]} 24. Nc3 {[%clk 0:01:23]}  Nd4 {[%clk 0:02:12]} 25. Qd1 {[%clk 0:01:21]}  Rd8 {[%clk 0:02:02]} 26. Nd5 {[%clk 0:01:18]}  Nxd5 {[%clk 0:01:59]} 27. exd5 {[%clk 0:01:18]}  Rxa2 {[%clk 0:01:57]} 28. Bxd4 {[%clk 0:01:17]}  exd4 {[%clk 0:01:56]} 29. Rc2 {[%clk 0:01:06]}  Rxc2 {[%clk 0:01:52]} 30. Qxc2 {[%clk 0:01:06]}  Re8 {[%clk 0:01:51]} 31. Rxe8+ {[%clk 0:01:04]}  Qxe8 {[%clk 0:01:52]} 32. Qe2 {[%clk 0:01:04]}  Qd7 {[%clk 0:01:40]} 33. Qd3 {[%clk 0:01:01]}  Qxh3 {[%clk 0:01:15]} 34. Qxb5 {[%clk 0:01:00]}  Qf5 {[%clk 0:01:15]} 35. Qe8+ {[%clk 0:00:58]}  Kg7 {[%clk 0:01:14]} 36. Qe4 {[%clk 0:00:58]}  Qg5 {[%clk 0:00:57]} 37. b4 {[%clk 0:00:55]}  Qc1+ {[%clk 0:00:52]} 38. Kg2 {[%clk 0:00:54]}  Qc3 {[%clk 0:00:45]} 39. bxc5 {[%clk 0:00:52]}  Qxc5 {[%clk 0:00:45]} 40. Qd3 {[%clk 0:00:50]}  Qb4 {[%clk 0:00:34]} 41. Be4 {[%clk 0:00:48]}  Bc5 {[%clk 0:00:27]} 42. Bf3 {[%clk 0:00:45]}  Qb2 {[%clk 0:00:20]} 43. Be4 {[%clk 0:00:42]}  h5 {[%clk 0:00:17]} 44. Bf3 {[%clk 0:00:42]}  Qc3 {[%clk 0:00:15]} 45. Be4 {[%clk 0:00:39]}  Qxd3 {[%clk 0:00:14]} 46. Bxd3 {[%clk 0:00:38]}  Kf6 {[%clk 0:00:15]} 47. Kf3 {[%clk 0:00:36]}  Ke5 {[%clk 0:00:15]} 48. Bc4 {[%clk 0:00:37]}  Bd6 {[%clk 0:00:12]} 49. Ke2 {[%clk 0:00:31]}  g5 {[%clk 0:00:11]} 50. Kf3 {[%clk 0:00:19]}  f5 {[%clk 0:00:10]} 51. Ke2 {[%clk 0:00:17]}  Kf6 {[%clk 0:00:04]} 52. Bd3 {[%clk 0:00:16]}  h4 {[%clk 0:00:04]} 53. gxh4 {[%clk 0:00:15]}  gxh4 {[%clk 0:00:05]} 54. Kf3 {[%clk 0:00:15]}  h3 {[%clk 0:00:05]} 55. Bc2 {[%clk 0:00:13]}  h2 {[%clk 0:00:04]} 56. Kg2 {[%clk 0:00:13]}  Bf4 {[%clk 0:00:04]} 57. Bd3 {[%clk 0:00:11]}  Ke5 {[%clk 0:00:05]} 58. f3 {[%clk 0:00:11]}  Kxd5 {[%clk 0:00:04]} 59. Bxf5 {[%clk 0:00:10]}  Kc5 {[%clk 0:00:05]} 60. Bd3 {[%clk 0:00:10]}  Kb4 {[%clk 0:00:05]} 61. Bf5 {[%clk 0:00:10]}  Kc3 {[%clk 0:00:05]} 62. Kh1 {[%clk 0:00:10]}  Kd2 {[%clk 0:00:05]} 63. Kg2 {[%clk 0:00:09]}  Ke3 {[%clk 0:00:05]} 64. Be4 {[%clk 0:00:08]}  Ke2 {[%clk 0:00:06]} 65. Kh1 {[%clk 0:00:08]}  Kf2 {[%clk 0:00:06]} 66. Bd3 {[%clk 0:00:06]}  Kxf3 {[%clk 0:00:05]} 67. Bh7 {[%clk 0:00:07]}  Ke3 {[%clk 0:00:05]} 68. Bg6 {[%clk 0:00:07]}  Be5 {[%clk 0:00:06]} 69. Bh7 {[%clk 0:00:07]}  Kf2 {[%clk 0:00:07]} 70. Bg6 {[%clk 0:00:07]}  Ke1 {[%clk 0:00:07]} 71. Bh7 {[%clk 0:00:08]}  Kd2 {[%clk 0:00:08]} 72. Bg6 {[%clk 0:00:08]}  Kc3 {[%clk 0:00:09]} 73. Bh7 {[%clk 0:00:09]}  Kc4 {[%clk 0:00:10]} 74. Bg6 {[%clk 0:00:09]}  Kc5 {[%clk 0:00:11]} 75. Bf5 {[%clk 0:00:09]}  Kd5 {[%clk 0:00:12]} 76. Bg6 {[%clk 0:00:10]}  Bf4 {[%clk 0:00:12]} 77. Bh7 {[%clk 0:00:10]}  Kc4 {[%clk 0:00:13]} 78. Bg6 {[%clk 0:00:10]}  d3 {[%clk 0:00:14]} 79. Bxd3+ {[%clk 0:00:10]}  Kxd3 {[%clk 0:00:15]} 80. Kg2 {[%clk 0:00:10]}  Ke4 {[%clk 0:00:16]} 81. Kh1 {[%clk 0:00:11]}  Be5 {[%clk 0:00:17]} 82. Kg2 {[%clk 0:00:11]}  Ke3 {[%clk 0:00:17]} 83. Kh1 {[%clk 0:00:12]}  Bd6 {[%clk 0:00:18]} 84. Kg2 {[%clk 0:00:12]}  Kd4 {[%clk 0:00:19]} 85. Kh1 {[%clk 0:00:12]}  Ke4 {[%clk 0:00:20]} 86. Kg2 {[%clk 0:00:13]}  Ke3 {[%clk 0:00:20]} 87. Kh1 {[%clk 0:00:14]}  Kf3 {[%clk 0:00:21]} 1/2-1/2


[Site "https://www.chess.com"]

[Event "Titled Tuesday Blitz November 29 Late 2022"]
[White "Naroditsky, Daniel"]
[Black "Keymer, Vincent"]
[WhiteFideId "2026961"]
[BlackFideId "12940690"]
[WhiteElo "2628"]
[BlackElo "2600"]
[Result "0-1"]
[Round "08"]
[TimeControl "180+1"]
[Date "2022.11.30"]
[WhiteClock "0:01:57"]
[BlackClock "0:01:51"]

1. e4 {[%clk 0:03:00]}  c6 {[%clk 0:02:59]} 2. d4 {[%clk 0:02:54]}  d5 {[%clk 0:03:00]} 3. e5 {[%clk 0:02:55]}  Bf5 {[%clk 0:03:00]} 4. Nd2 {[%clk 0:02:56]}  e6 {[%clk 0:03:00]} 5. Nb3 {[%clk 0:02:56]}  Nd7 {[%clk 0:03:00]} 6. Nf3 {[%clk 0:02:56]}  Qc7 {[%clk 0:03:01]} 7. Be2 {[%clk 0:02:55]}  c5 {[%clk 0:03:01]} 8. dxc5 {[%clk 0:02:54]}  Bxc5 {[%clk 0:03:01]} 9. Nxc5 {[%clk 0:02:49]}  Qxc5 {[%clk 0:03:02]} 10. c3 {[%clk 0:02:48]}  Ne7 {[%clk 0:03:02]} 11. Qa4 {[%clk 0:02:48]}  Qc7 {[%clk 0:02:54]} 12. Bf4 {[%clk 0:02:45]}  O-O {[%clk 0:02:50]} 13. Bg3 {[%clk 0:02:45]}  Be4 {[%clk 0:02:38]} 14. Nd2 {[%clk 0:02:40]}  Nc5 {[%clk 0:02:33]} 15. Qd1 {[%clk 0:02:23]}  Bxg2 {[%clk 0:02:32]} 16. Rg1 {[%clk 0:02:24]}  Be4 {[%clk 0:02:33]} 17. Kf1 {[%clk 0:02:20]}  Bf5 {[%clk 0:02:23]} 18. Nb3 {[%clk 0:02:19]}  Ne4 {[%clk 0:02:20]} 19. f4 {[%clk 0:02:06]}  Nc6 {[%clk 0:02:17]} 20. Kg2 {[%clk 0:02:05]}  Qb6 {[%clk 0:02:15]} 21. Be1 {[%clk 0:01:56]}  f6 {[%clk 0:02:11]} 22. exf6 {[%clk 0:01:56]}  Rxf6 {[%clk 0:02:12]} 23. Kh1 {[%clk 0:01:56]}  Raf8 {[%clk 0:01:57]} 24. Bf3 {[%clk 0:01:57]}  Bg6 {[%clk 0:01:53]} 25. Bg3 {[%clk 0:01:57]}  Rxf4 {[%clk 0:01:51]} 0-1


[Site "https://www.chess.com"]

[Event "Titled Tuesday Blitz November 29 Late 2022"]
[White "O`Gorman, Tom"]
[Black "Chlpik, Martin"]
[WhiteFideId "2508249"]
[BlackFideId "14923351"]
[WhiteElo "2271"]
[BlackElo "2109"]
[Result "1-0"]
[Round "08"]
[TimeControl "180+1"]
[Date "2022.11.30"]
[WhiteClock "0:00:10"]
[BlackClock "0:00:33"]

1. e4 {[%clk 0:03:00]}  c5 {[%clk 0:02:56]} 2. Nf3 {[%clk 0:02:59]}  d6 {[%clk 0:02:56]} 3. d4 {[%clk 0:02:58]}  cxd4 {[%clk 0:02:57]} 4. Nxd4 {[%clk 0:02:58]}  Nf6 {[%clk 0:02:57]} 5. Nc3 {[%clk 0:02:58]}  a6 {[%clk 0:02:58]} 6. Bg5 {[%clk 0:02:56]}  Nbd7 {[%clk 0:02:57]} 7. Qe2 {[%clk 0:02:56]}  b5 {[%clk 0:02:56]} 8. f4 {[%clk 0:02:53]}  h6 {[%clk 0:02:37]} 9. Bh4 {[%clk 0:02:51]}  e5 {[%clk 0:02:33]} 10. fxe5 {[%clk 0:02:36]}  dxe5 {[%clk 0:02:32]} 11. Nf5 {[%clk 0:02:37]}  b4 {[%clk 0:02:27]} 12. Nd5 {[%clk 0:02:34]}  g5 {[%clk 0:02:27]} 13. Bg3 {[%clk 0:02:23]}  Nxd5 {[%clk 0:02:26]} 14. exd5 {[%clk 0:02:23]}  Qf6 {[%clk 0:02:23]} 15. Ne3 {[%clk 0:02:13]}  Bg7 {[%clk 0:02:20]} 16. Qf2 {[%clk 0:01:45]}  Qxf2+ {[%clk 0:02:15]} 17. Bxf2 {[%clk 0:01:46]}  Nc5 {[%clk 0:02:14]} 18. O-O-O {[%clk 0:01:42]}  Ne4 {[%clk 0:02:14]} 19. Be1 {[%clk 0:01:40]}  O-O {[%clk 0:02:09]} 20. Bxb4 {[%clk 0:01:39]}  Re8 {[%clk 0:02:05]} 21. Be1 {[%clk 0:01:36]}  f5 {[%clk 0:02:05]} 22. Bd3 {[%clk 0:01:36]}  Nd6 {[%clk 0:02:03]} 23. Bb4 {[%clk 0:01:32]}  e4 {[%clk 0:01:58]} 24. Bxd6 {[%clk 0:01:29]}  exd3 {[%clk 0:01:58]} 25. Rxd3 {[%clk 0:01:30]}  f4 {[%clk 0:01:53]} 26. Nc4 {[%clk 0:01:29]}  Bf5 {[%clk 0:01:54]} 27. Rd2 {[%clk 0:01:29]}  Re4 {[%clk 0:01:44]} 28. b3 {[%clk 0:01:27]}  Rae8 {[%clk 0:01:43]} 29. Ba3 {[%clk 0:01:20]}  Bc3 {[%clk 0:01:29]} 30. Rhd1 {[%clk 0:00:51]}  Bg4 {[%clk 0:01:18]} 31. Nd6 {[%clk 0:00:42]}  Re1 {[%clk 0:01:14]} 32. Nxe8 {[%clk 0:00:32]}  Bxd2+ {[%clk 0:01:14]} 33. Kxd2 {[%clk 0:00:33]}  Rxd1+ {[%clk 0:01:13]} 34. Kc3 {[%clk 0:00:33]}  Bh3 {[%clk 0:01:07]} 35. gxh3 {[%clk 0:00:30]}  f3 {[%clk 0:01:07]} 36. Bc5 {[%clk 0:00:28]}  Re1 {[%clk 0:01:03]} 37. Nc7 {[%clk 0:00:26]}  Re5 {[%clk 0:00:57]} 38. Kc4 {[%clk 0:00:24]}  Rf5 {[%clk 0:00:53]} 39. Nxa6 {[%clk 0:00:23]}  f2 {[%clk 0:00:46]} 40. Bxf2 {[%clk 0:00:23]}  Rxf2 {[%clk 0:00:47]} 41. Nb4 {[%clk 0:00:22]}  Rxh2 {[%clk 0:00:46]} 42. a4 {[%clk 0:00:21]}  h5 {[%clk 0:00:45]} 43. a5 {[%clk 0:00:21]}  g4 {[%clk 0:00:44]} 44. a6 {[%clk 0:00:20]}  Rh1 {[%clk 0:00:44]} 45. Kb5 {[%clk 0:00:14]}  Ra1 {[%clk 0:00:44]} 46. d6 {[%clk 0:00:13]}  Kf7 {[%clk 0:00:42]} 47. hxg4 {[%clk 0:00:12]}  h4 {[%clk 0:00:40]} 48. Kc6 {[%clk 0:00:13]}  h3 {[%clk 0:00:40]} 49. d7 {[%clk 0:00:14]}  Rd1 {[%clk 0:00:36]} 50. Nd5 {[%clk 0:00:14]}  Rxd5 {[%clk 0:00:33]} 51. Kxd5 {[%clk 0:00:14]}  Ke7 {[%clk 0:00:34]} 52. a7 {[%clk 0:00:10]}  h2 {[%clk 0:00:33]} 53. d8=Q+ {[%clk 0:00:10]} 1-0


[Site "https://www.chess.com"]

[Event "Titled Tuesday Blitz November 29 Late 2022"]
[White "Pace, Christopher"]
[Black "Vlassov, Nikolai"]
[WhiteFideId "2610167"]
[BlackFideId "4103360"]
[WhiteElo "2321"]
[BlackElo "2324"]
[Result "0-1"]
[Round "08"]
[TimeControl "180+1"]
[Date "2022.11.30"]
[WhiteClock "0:00:01"]
[BlackClock "0:00:14"]

1. e4 {[%clk 0:03:00]}  c5 {[%clk 0:02:59]} 2. Nf3 {[%clk 0:02:58]}  d6 {[%clk 0:02:58]} 3. d4 {[%clk 0:02:58]}  cxd4 {[%clk 0:02:58]} 4. Nxd4 {[%clk 0:02:59]}  Nf6 {[%clk 0:02:57]} 5. Nc3 {[%clk 0:02:59]}  g6 {[%clk 0:02:56]} 6. f3 {[%clk 0:02:52]}  a6 {[%clk 0:02:56]} 7. Be3 {[%clk 0:02:52]}  Nbd7 {[%clk 0:02:55]} 8. Qd2 {[%clk 0:02:49]}  Qc7 {[%clk 0:02:55]} 9. O-O-O {[%clk 0:02:47]}  b5 {[%clk 0:02:55]} 10. g4 {[%clk 0:02:38]}  b4 {[%clk 0:02:55]} 11. Nd5 {[%clk 0:02:29]}  Nxd5 {[%clk 0:02:54]} 12. exd5 {[%clk 0:02:30]}  Bb7 {[%clk 0:02:54]} 13. Qxb4 {[%clk 0:02:12]}  Bxd5 {[%clk 0:02:53]} 14. Nb5 {[%clk 0:02:12]}  axb5 {[%clk 0:02:49]} 15. Rxd5 {[%clk 0:02:11]}  Rxa2 {[%clk 0:02:41]} 16. Kb1 {[%clk 0:02:11]}  Ra8 {[%clk 0:02:22]} 17. Rxb5 {[%clk 0:02:09]}  Bg7 {[%clk 0:01:42]} 18. Rb7 {[%clk 0:02:09]}  Qa5 {[%clk 0:01:42]} 19. Qxa5 {[%clk 0:02:02]}  Rxa5 {[%clk 0:01:42]} 20. Bb5 {[%clk 0:02:03]}  O-O {[%clk 0:01:42]} 21. Bd2 {[%clk 0:01:38]}  Nc5 {[%clk 0:01:39]} 22. Bxa5 {[%clk 0:01:19]}  Nxb7 {[%clk 0:01:39]} 23. Bb4 {[%clk 0:01:20]}  Rb8 {[%clk 0:01:24]} 24. c3 {[%clk 0:01:00]}  Nc5 {[%clk 0:01:16]} 25. Be2 {[%clk 0:00:55]}  Be5 {[%clk 0:01:10]} 26. Kc2 {[%clk 0:00:49]}  Ra8 {[%clk 0:01:05]} 27. h4 {[%clk 0:00:43]}  Kg7 {[%clk 0:01:04]} 28. h5 {[%clk 0:00:42]}  Kf6 {[%clk 0:01:03]} 29. hxg6 {[%clk 0:00:42]}  hxg6 {[%clk 0:01:03]} 30. Rh7 {[%clk 0:00:38]}  Ne6 {[%clk 0:01:00]} 31. Rh1 {[%clk 0:00:20]}  Nf4 {[%clk 0:00:51]} 32. Bb5 {[%clk 0:00:20]}  Nd5 {[%clk 0:00:39]} 33. Ba3 {[%clk 0:00:18]}  Nxc3 {[%clk 0:00:31]} 34. Bc6 {[%clk 0:00:17]}  Ra6 {[%clk 0:00:29]} 35. Be8 {[%clk 0:00:09]}  Ne2 {[%clk 0:00:24]} 36. Rh7 {[%clk 0:00:08]}  Nd4+ {[%clk 0:00:24]} 37. Kd3 {[%clk 0:00:09]}  Kg5 {[%clk 0:00:21]} 38. Rxf7 {[%clk 0:00:07]}  Ne6 {[%clk 0:00:15]} 39. Rxe7 {[%clk 0:00:06]}  Nf4+ {[%clk 0:00:14]} 40. Ke4 {[%clk 0:00:04]}  Bf6 {[%clk 0:00:13]} 41. Rh7 {[%clk 0:00:02]}  d5+ {[%clk 0:00:13]} 42. Ke3 {[%clk 0:00:01]}  Re6+ {[%clk 0:00:14]} 0-1


[Site "https://www.chess.com"]

[Event "Titled Tuesday Blitz November 29 Late 2022"]
[White "Papasimakopoulos, Alexandros"]
[Black "Kuzmicz, Krystian"]
[WhiteFideId "4244125"]
[BlackFideId "1119125"]
[WhiteElo "2365"]
[BlackElo "2380"]
[Result "0-1"]
[Round "08"]
[TimeControl "180+1"]
[Date "2022.11.30"]
[WhiteClock "0:01:23"]
[BlackClock "0:00:34"]

1. d4 {[%clk 0:03:00]}  g6 {[%clk 0:02:56]} 2. c4 {[%clk 0:02:58]}  Bg7 {[%clk 0:02:56]} 3. e4 {[%clk 0:02:59]}  c5 {[%clk 0:02:56]} 4. d5 {[%clk 0:02:59]}  d6 {[%clk 0:02:56]} 5. Bd3 {[%clk 0:02:59]}  e6 {[%clk 0:02:57]} 6. h3 {[%clk 0:02:59]}  Ne7 {[%clk 0:02:56]} 7. Nf3 {[%clk 0:02:59]}  h6 {[%clk 0:02:55]} 8. O-O {[%clk 0:03:00]}  O-O {[%clk 0:02:55]} 9. Nc3 {[%clk 0:02:59]}  Na6 {[%clk 0:02:46]} 10. a3 {[%clk 0:02:59]}  Nc7 {[%clk 0:02:46]} 11. Qc2 {[%clk 0:02:57]}  a6 {[%clk 0:02:36]} 12. b4 {[%clk 0:02:57]}  b6 {[%clk 0:02:33]} 13. Rb1 {[%clk 0:02:56]}  exd5 {[%clk 0:02:23]} 14. exd5 {[%clk 0:02:54]}  Bf5 {[%clk 0:02:20]} 15. bxc5 {[%clk 0:02:54]}  bxc5 {[%clk 0:02:20]} 16. Re1 {[%clk 0:02:53]}  Qd7 {[%clk 0:02:12]} 17. Bxf5 {[%clk 0:02:47]}  Nxf5 {[%clk 0:02:10]} 18. g4 {[%clk 0:02:46]}  Nd4 {[%clk 0:02:04]} 19. Nxd4 {[%clk 0:02:46]}  cxd4 {[%clk 0:02:05]} 20. Ne4 {[%clk 0:02:40]}  f5 {[%clk 0:02:04]} 21. gxf5 {[%clk 0:02:37]}  Qxf5 {[%clk 0:02:03]} 22. Qd3 {[%clk 0:02:28]}  Rae8 {[%clk 0:01:59]} 23. Bd2 {[%clk 0:02:24]}  Re5 {[%clk 0:01:54]} 24. Rb7 {[%clk 0:02:04]}  Ne8 {[%clk 0:01:43]} 25. Rb3 {[%clk 0:02:02]}  Rf7 {[%clk 0:01:27]} 26. f4 {[%clk 0:01:54]}  Ree7 {[%clk 0:01:13]} 27. Kg2 {[%clk 0:01:53]}  Qd7 {[%clk 0:00:51]} 28. Rb8 {[%clk 0:01:48]}  Kh7 {[%clk 0:00:50]} 29. Ng3 {[%clk 0:01:45]}  Rxe1 {[%clk 0:00:46]} 30. Bxe1 {[%clk 0:01:45]}  Rxf4 {[%clk 0:00:44]} 31. Bf2 {[%clk 0:01:42]}  Qf7 {[%clk 0:00:40]} 32. Bg1 {[%clk 0:01:36]}  Nf6 {[%clk 0:00:39]} 33. Bxd4 {[%clk 0:01:34]}  Ng4 {[%clk 0:00:39]} 34. Bxg7 {[%clk 0:01:23]}  Rf2+ {[%clk 0:00:35]} 35. Kg1 {[%clk 0:01:24]}  Rg2+ {[%clk 0:00:34]} 36. Kh1 {[%clk 0:01:23]}  Rh2+ {[%clk 0:00:34]} 37. Kg1 {[%clk 0:01:23]}  Qf2# {[%clk 0:00:34]} 0-1


[Site "https://www.chess.com"]

[Event "Titled Tuesday Blitz November 29 Late 2022"]
[White "Przybylski, Wojciech"]
[Black "Czopor, Maciej"]
[WhiteFideId "1117599"]
[BlackFideId "21805431"]
[WhiteElo "2221"]
[BlackElo "2324"]
[Result "0-1"]
[Round "08"]
[TimeControl "180+1"]
[Date "2022.11.30"]
[WhiteClock "0:00:01"]
[BlackClock "0:00:04"]

1. e4 {[%clk 0:02:56]}  c6 {[%clk 0:02:59]} 2. d4 {[%clk 0:02:55]}  d5 {[%clk 0:03:00]} 3. Nc3 {[%clk 0:02:53]}  g6 {[%clk 0:02:58]} 4. Nf3 {[%clk 0:02:51]}  Bg7 {[%clk 0:02:59]} 5. h3 {[%clk 0:02:50]}  dxe4 {[%clk 0:02:57]} 6. Nxe4 {[%clk 0:02:49]}  Nf6 {[%clk 0:02:58]} 7. Nc3 {[%clk 0:02:49]}  O-O {[%clk 0:02:58]} 8. Be2 {[%clk 0:02:48]}  a5 {[%clk 0:02:50]} 9. O-O {[%clk 0:02:46]}  Na6 {[%clk 0:02:50]} 10. Re1 {[%clk 0:02:43]}  Nc7 {[%clk 0:02:50]} 11. Ne5 {[%clk 0:02:36]}  Bf5 {[%clk 0:02:44]} 12. Bf3 {[%clk 0:02:34]}  Re8 {[%clk 0:02:34]} 13. a4 {[%clk 0:02:30]}  Ncd5 {[%clk 0:02:33]} 14. Nxd5 {[%clk 0:02:26]}  cxd5 {[%clk 0:02:33]} 15. c3 {[%clk 0:02:24]}  Qb6 {[%clk 0:02:33]} 16. b3 {[%clk 0:02:04]}  Rac8 {[%clk 0:02:32]} 17. Bb2 {[%clk 0:02:02]}  Be6 {[%clk 0:02:26]} 18. Nd3 {[%clk 0:01:54]}  Ne4 {[%clk 0:02:24]} 19. Bxe4 {[%clk 0:01:52]}  dxe4 {[%clk 0:02:24]} 20. Nc5 {[%clk 0:01:52]}  Rxc5 {[%clk 0:02:03]} 21. dxc5 {[%clk 0:01:51]}  Qxb3 {[%clk 0:02:04]} 22. Qxb3 {[%clk 0:01:46]}  Bxb3 {[%clk 0:02:05]} 23. Rxe4 {[%clk 0:01:44]}  Bd5 {[%clk 0:02:05]} 24. Re2 {[%clk 0:01:40]}  Bc6 {[%clk 0:02:02]} 25. c4 {[%clk 0:01:38]}  Bf8 {[%clk 0:02:00]} 26. Bc3 {[%clk 0:01:34]}  Ra8 {[%clk 0:02:00]} 27. Rd2 {[%clk 0:01:18]}  f6 {[%clk 0:01:59]} 28. f4 {[%clk 0:01:12]}  Kf7 {[%clk 0:01:59]} 29. Bd4 {[%clk 0:01:11]}  Bh6 {[%clk 0:01:52]} 30. Be3 {[%clk 0:01:09]}  Bg7 {[%clk 0:01:43]} 31. Kf2 {[%clk 0:01:06]}  Rc8 {[%clk 0:01:38]} 32. g4 {[%clk 0:01:05]}  Bf8 {[%clk 0:01:20]} 33. h4 {[%clk 0:00:51]}  h5 {[%clk 0:01:12]} 34. gxh5 {[%clk 0:00:47]}  gxh5 {[%clk 0:01:13]} 35. Ke2 {[%clk 0:00:36]}  Bh6 {[%clk 0:01:11]} 36. Kd3 {[%clk 0:00:34]}  Rg8 {[%clk 0:01:05]} 37. Rg1 {[%clk 0:00:32]}  Rxg1 {[%clk 0:01:04]} 38. Bxg1 {[%clk 0:00:32]}  Bxf4 {[%clk 0:01:05]} 39. Be3 {[%clk 0:00:32]}  Bg3 {[%clk 0:00:58]} 40. Bf2 {[%clk 0:00:28]}  Bf4 {[%clk 0:00:58]} 41. Be3 {[%clk 0:00:27]}  Be5 {[%clk 0:00:59]} 42. Bd4 {[%clk 0:00:23]}  Bc7 {[%clk 0:01:00]} 43. Rf2 {[%clk 0:00:21]}  Bxa4 {[%clk 0:00:55]} 44. Bc3 {[%clk 0:00:20]}  Bc6 {[%clk 0:00:51]} 45. Rf1 {[%clk 0:00:11]}  a4 {[%clk 0:00:50]} 46. Bb2 {[%clk 0:00:12]}  e5 {[%clk 0:00:50]} 47. Bc1 {[%clk 0:00:11]}  Ke6 {[%clk 0:00:49]} 48. Rg1 {[%clk 0:00:10]}  Kf7 {[%clk 0:00:34]} 49. Bb2 {[%clk 0:00:09]}  Bd8 {[%clk 0:00:28]} 50. Rf1 {[%clk 0:00:07]}  Ke6 {[%clk 0:00:26]} 51. Rg1 {[%clk 0:00:07]}  Be7 {[%clk 0:00:26]} 52. Ba3 {[%clk 0:00:07]}  f5 {[%clk 0:00:24]} 53. Rg6+ {[%clk 0:00:06]}  Kf7 {[%clk 0:00:24]} 54. Rh6 {[%clk 0:00:06]}  f4 {[%clk 0:00:08]} 55. Rxh5 {[%clk 0:00:06]}  e4+ {[%clk 0:00:09]} 56. Ke2 {[%clk 0:00:05]}  Kg6 {[%clk 0:00:05]} 57. Rh8 {[%clk 0:00:04]}  Bf6 {[%clk 0:00:04]} 58. Rf8 {[%clk 0:00:03]}  Bd4 {[%clk 0:00:04]} 59. Bc1 {[%clk 0:00:03]}  f3+ {[%clk 0:00:04]} 60. Ke1 {[%clk 0:00:02]}  e3 {[%clk 0:00:04]} 61. Rd8 {[%clk 0:00:01]}  Bc3+ {[%clk 0:00:04]} 0-1


[Site "https://www.chess.com"]

[Event "Titled Tuesday Blitz November 29 Late 2022"]
[White "Putnam, Liam"]
[Black "Martinez Reyes, Pedro Ramon"]
[WhiteFideId "30938279"]
[BlackFideId "3901807"]
[WhiteElo "2082"]
[BlackElo "2354"]
[Result "1-0"]
[Round "08"]
[TimeControl "180+1"]
[Date "2022.11.30"]
[WhiteClock "0:01:49"]
[BlackClock "0:00:33"]

1. e4 {[%clk 0:03:00]}  c6 {[%clk 0:03:00]} 2. d4 {[%clk 0:02:49]}  d5 {[%clk 0:03:00]} 3. e5 {[%clk 0:02:46]}  Bf5 {[%clk 0:02:58]} 4. h4 {[%clk 0:02:47]}  h5 {[%clk 0:02:58]} 5. c4 {[%clk 0:02:48]}  e6 {[%clk 0:02:58]} 6. Nc3 {[%clk 0:02:48]}  Ne7 {[%clk 0:02:51]} 7. Nge2 {[%clk 0:02:48]}  Nd7 {[%clk 0:02:44]} 8. Ng3 {[%clk 0:02:47]}  Bg6 {[%clk 0:02:39]} 9. Bg5 {[%clk 0:02:47]}  Qb6 {[%clk 0:02:35]} 10. Rc1 {[%clk 0:02:42]}  Qxb2 {[%clk 0:02:26]} 11. Bd3 {[%clk 0:02:41]}  Bxd3 {[%clk 0:02:19]} 12. Qxd3 {[%clk 0:02:41]}  dxc4 {[%clk 0:02:13]} 13. Qxc4 {[%clk 0:02:42]}  Nb6 {[%clk 0:02:11]} 14. Qd3 {[%clk 0:02:42]}  Ned5 {[%clk 0:02:08]} 15. O-O {[%clk 0:02:31]}  Qa3 {[%clk 0:02:03]} 16. Nge4 {[%clk 0:02:29]}  Bb4 {[%clk 0:02:00]} 17. Qg3 {[%clk 0:02:26]}  Nxc3 {[%clk 0:01:54]} 18. Nxc3 {[%clk 0:02:26]}  Nd5 {[%clk 0:01:46]} 19. Nxd5 {[%clk 0:02:09]}  Qxg3 {[%clk 0:01:41]} 20. Nc7+ {[%clk 0:02:07]}  Kd7 {[%clk 0:01:40]} 21. fxg3 {[%clk 0:02:08]}  Raf8 {[%clk 0:01:15]} 22. Rb1 {[%clk 0:02:08]}  Ba5 {[%clk 0:01:05]} 23. Rxb7 {[%clk 0:01:59]}  Bxc7 {[%clk 0:01:05]} 24. Rxa7 {[%clk 0:02:00]}  Rhg8 {[%clk 0:00:48]} 25. Bd2 {[%clk 0:02:00]}  f5 {[%clk 0:00:45]} 26. Ba5 {[%clk 0:01:49]}  Rc8 {[%clk 0:00:41]} 27. Rb1 {[%clk 0:01:50]}  Rgf8 {[%clk 0:00:33]} 28. Rbb7 {[%clk 0:01:49]} 1-0


[Site "https://www.chess.com"]